bitfinex-derivatives/quotes_ETHF0:USTF0_20241008
["timestamp","ask_amount","ask_price","bid_price","bid_amount"]
[1728376835514,0.3991,2430.6,2430.5,1.1845]
[1728376837121,0.81062,2430.6,2430.5,1.1845]
[1728376840519,2.29062,2430.6,2430.5,1.1845]
[1728376842720,5.9935,2430.6,2430.2,1.62497]
[1728376842911,5.9935,2430.6,2430.2,1.2134]
[1728376842912,1.48,2430.4,2430.2,1.2134]
[1728376843113,1.89157,2430.4,2430.2,1.2134]
[1728376843518,0.41157,2430.3,2430.2,1.2134]
[1728376843715,0.82947,2430.3,2430.2,1.2134]
[1728376843910,0.4179,2430.3,2430.2,1.2134]
[1728376845026,1.249,2430.5,2430.3,0.41156]
[1728376845218,0.41154,2430.5,2430.3,0.41156]
[1728376846020,4.8769,2430.6,2430.3,0.41156]
[1728376846320,2.07843,2430.6,2430.3,0.41156]
[1728376846631,5.28843,2430.6,2430.3,0.41156]
[1728376847123,4.8769,2430.6,2430.3,0.41156]
[1728376847320,0.41154,2430.5,2430.3,0.41156]
[1728376847718,4.8769,2430.6,2430.3,0.41156]
[1728376847923,5.28843,2430.6,2430.3,0.41156]
[1728376848515,0.41154,2430.5,2430.3,0.41156]
[1728376852420,3.6279,2430.6,2430.3,0.41156]
[1728376852730,5.50899091,2430.8,2430.5,0.41152]
[1728376853035,9.12829091,2430.8,2430.6,1.2289]
[1728376853527,9.55099091,2430.8,2430.6,1.2289]
[1728376853732,0.4115,2430.7,2430.6,1.2289]
[1728376854723,9.13949091,2430.8,2430.3,0.41156]
[1728376854932,3.62153,2430.6,2430.4,0.4157]
[1728376855120,3.62153,2430.6,2430.4,0.82725]
[1728376855326,0.389,2430.5,2430.4,0.82725]
[1728376857431,0.389,2430.5,2430.2,0.8268]
[1728376857623,3.62157,2430.4,2430.2,0.3994]
[1728376857927,4.44297,2430.4,2430.2,0.3994]
[1728376858318,4.0314,2430.4,2430.2,0.81098]
[1728376858825,4.44295,2430.4,2430.2,0.81098]
[1728376859220,4.0314,2430.4,2430.2,0.81098]
[1728376859423,4.44296,2430.4,2430.2,0.81098]
[1728376859921,4.44296,2430.4,2430.2,0.3994]
[1728376859922,0.41157,2430.3,2430.2,0.3994]
[1728376860325,4.0314,2430.4,2430.0,0.7738]
[1728376860538,3.6318,2430.2,2430.0,1.58091]
[1728376860732,4.04339,2430.2,2430.0,1.58091]
[1728376861923,3.6318,2430.2,2430.0,1.58091]
[1728376862121,4.0434,2430.2,2430.0,1.58091]
[1728376862632,0.4116,2430.1,2430.0,1.58092]
[1728376862864,4.0434,2430.2,2430.0,1.58092]
[1728376863632,3.6318,2430.2,2430.0,1.58092]
[1728376864024,3.6318,2430.2,2430.0,1.1693]
[1728376864224,3.6318,2430.2,2430.1,0.4116]
[1728376865925,3.6318,2430.2,2430.0,1.58091]
[1728376866430,3.6318,2430.2,2429.9,3.61943]
[1728376866431,1.48,2430.1,2429.9,3.61943]
[1728376866636,1.48,2430.1,2430.0,0.41162]
[1728376869625,1.48,2430.1,2430.0,0.80532]
[1728376876038,1.48,2430.1,2430.0,0.3937]
[1728376876431,1.48,2430.1,2429.7,0.7877]
[1728376876432,0.41163,2430.0,2429.7,0.41167]
[1728376876630,1.48,2429.8,2429.6,0.41168]
[1728376876831,1.48,2429.8,2429.4,0.8172]
[1728376877032,1.48,2429.6,2429.4,1.22891]
[1728376877334,1.48,2429.6,2429.5,0.41171]
[1728376877525,1.8924,2429.6,2429.5,0.41171]
[1728376877729,1.8924,2429.6,2429.4,1.22891]
[1728376877926,41.04765822,2429.9,2429.4,0.8172]
[1728376877927,0.24765822,2429.9,2429.4,0.8172]
[1728376878131,4.0435,2430.0,2429.7,4.6878]
[1728376878132,0.8357,2430.0,2429.7,4.6878]
[1728376878433,0.8357,2430.0,2429.4,0.8172]
[1728376878434,2.3157,2430.0,2429.9,0.41164]
[1728376879036,2.3157,2430.0,2429.8,0.82485]
[1728376879239,0.4124,2429.9,2429.8,0.82485]
[1728376882040,0.4124,2429.9,2429.4,4.121]
[1728376882237,1.48,2429.6,2429.5,0.4042]
[1728376882439,1.48,2429.6,2429.5,0.81591]
[1728376882639,1.48,2429.8,2429.7,0.41165]
[1728376883834,1.48,2429.8,2429.6,0.41168]
[1728376884034,1.48,2429.7,2429.6,0.41168]
[1728376884541,1.89167,2429.7,2429.1,3.3038]
[1728376884731,1.48,2429.5,2429.4,0.41171]
[1728376885847,2.7013,2429.6,2429.5,0.41171]
[1728376894449,2.7013,2429.6,2429.4,0.41172]
[1728376894650,2.7013,2429.6,2429.2,0.4164]
[1728376894850,1.48,2429.4,2429.3,0.41174]
[1728376897247,1.48,2429.4,2429.2,0.82815]
[1728376897248,1.89174,2429.4,2429.2,0.82815]
[1728376897450,1.8801,2429.3,2429.2,0.82815]
[1728376909655,1.8801,2429.3,2429.2,0.41175]
[1728376909960,5.0879,2429.3,2429.2,0.41175]
[1728376911761,9.61644,2429.3,2429.1,0.41177]
[1728376911968,0.7968,2429.2,2429.0,0.41177]
[1728376912268,1.48,2429.1,2429.0,0.41177]
[1728376915666,1.48,2429.3,2429.2,0.41176]
[1728376916358,1.48,2429.3,2429.2,1.23076]
[1728376916562,1.48,2429.3,2429.2,0.83836]
[1728376916969,2.2706,2429.3,2429.2,0.83836]
[1728376918875,2.2706,2429.3,2429.2,0.41176]
[1728376922273,2.2706,2429.3,2429.1,0.41176]
[1728376922570,1.9023,2429.2,2429.1,0.41176]
[1728376923174,1.9023,2429.2,2429.0,0.41178]
[1728376923572,1.9023,2429.2,2429.1,0.41177]
[1728376931074,1.9023,2429.2,2428.8,1.246]
[1728376931275,1.9023,2429.2,2429.1,0.41177]
[1728376935479,1.02925,2429.6,2429.1,0.41177]
[1728376935480,7.3428,2429.8,2429.1,7.3246]
[1728376935781,1.48,2429.4,2429.3,0.41174]
[1728376941886,0.8314,2429.7,2429.2,1.2278]
[1728376942079,1.2556,2429.7,2429.6,0.41169]
[1728376942387,2.331,2429.7,2429.6,0.41169]
[1728376942589,1.48,2429.7,2429.6,0.41169]
[1728376943284,1.48,2429.7,2429.6,1.24369]
[1728376944087,1.48,2429.7,2429.1,0.096]
[1728376944286,1.21849,2429.6,2429.4,0.41171]
[1728376944484,1.8903,2429.5,2429.4,0.41171]
[1728376944887,1.8903,2429.5,2429.4,4.52771]
[1728376947089,1.48,2429.5,2429.4,4.52771]
[1728376948095,1.48,2429.5,2429.4,4.92311]
[1728376948395,1.48,2429.5,2429.4,5.33041]
[1728376950092,1.48,2429.5,2429.2,0.3978]
[1728376950398,0.41171,2429.5,2429.3,0.41174]
[1728376954194,1.48,2429.4,2429.3,0.41174]
[1728376958099,2.2868,2429.6,2429.5,0.41171]
[1728376958303,2.2868,2429.6,2429.2,4.63499]
[1728376958304,0.3923,2429.7,2429.6,0.41169]
[1728376958491,1.8723,2429.7,2429.6,0.41169]
[1728376964496,0.8175,2429.9,2429.5,0.392]
[1728376964697,2.2975,2429.9,2429.8,0.41165]
[1728376979209,2.2975,2429.9,2429.5,0.392]
[1728376979414,1.48,2429.7,2429.6,0.41165]
[1728376982613,1.48,2429.8,2429.5,0.392]
[1728376982819,1.48,2429.8,2429.7,0.41163]
[1728376984928,1.89162,2429.8,2429.5,0.392]
[1728376985223,1.48,2429.6,2429.5,0.80366]
[1728376985616,1.8779,2429.6,2429.5,0.392]
[1728376985820,1.8779,2429.6,2429.4,3.2078]
[1728376985821,5.9939,2429.6,2429.4,3.2078]
[1728376986025,0.82048,2429.5,2429.2,0.5077]
[1728376986232,1.48,2429.3,2429.2,0.41171]
[1728376987122,2.6677,2429.3,2429.1,0.79932]
[1728376987323,2.256,2429.3,2429.1,0.79932]
[1728376987531,2.6677,2429.3,2429.1,0.79932]
[1728376987829,2.256,2429.3,2429.1,0.3876]
[1728376988030,2.256,2429.3,2429.2,0.41171]
[1728376988624,2.256,2429.3,2429.1,0.3876]
[1728376988832,2.256,2429.3,2429.1,0.79932]
[1728376989033,2.256,2429.3,2429.2,0.41171]
[1728376990438,2.256,2429.3,2429.1,0.79933]
[1728376990439,2.66771,2429.3,2429.1,0.79933]
[1728376992121,2.256,2429.3,2429.2,0.41171]
[1728376992430,2.6677,2429.3,2429.1,0.79932]
[1728376993238,2.256,2429.3,2429.1,0.3876]
[1728376993426,2.256,2429.3,2429.2,0.41171]
[1728376994534,2.66771,2429.3,2429.1,0.41173]
[1728376994839,2.256,2429.3,2429.0,3.2078]
[1728376995031,1.48,2429.1,2429.0,3.2078]
[1728376995229,1.48,2429.1,2429.0,3.61955]
[1728376999140,1.89174,2429.1,2428.9,0.41175]
[1728376999332,0.41177,2428.9,2428.7,0.41179]
[1728376999538,1.9024,2428.8,2428.7,0.41179]
[1728377002742,2.31419,2428.8,2428.6,5.44761528]
[1728377003039,0.3976,2428.7,2428.6,5.44761528]
[1728377025361,0.3976,2428.7,2428.6,8.65541528]
[1728377025568,1.83829011,2429.0,2428.9,0.41177]
[1728377025569,0.3905,2429.0,2428.9,0.41177]
[1728377025759,0.4257,2429.1,2428.6,9.72360528]
[1728377025959,0.4257,2429.1,2429.0,0.41175]
[1728377026166,1.8786,2429.2,2429.1,0.41173]
[1728377026354,1.8786,2429.2,2428.9,3.2078]
[1728377026556,1.8786,2429.2,2429.0,0.82404]
[1728377026557,0.81033,2429.2,2429.0,0.82404]
[1728377027954,0.41173,2429.1,2428.9,0.41175]
[1728377028159,1.48,2428.9,2428.8,0.41178]
[1728377031961,1.902,2429.0,2428.7,0.4123]
[1728377032159,1.902,2429.0,2428.9,0.41177]
[1728377044375,1.902,2429.0,2428.8,3.2078]
[1728377044580,2.70967,2428.9,2428.8,3.2078]
[1728377046184,2.70967,2428.9,2428.8,3.61958]
[1728377046575,2.2979,2428.9,2428.8,3.61958]
[1728377048786,0.8179,2428.9,2428.8,3.61958]
[1728377049087,5.09952,2429.2,2429.1,0.41173]
[1728377049280,5.50792,2429.2,2429.1,0.41173]
[1728377049880,5.50792,2429.2,2428.9,1.2472]
[1728377050082,5.50792,2429.2,2429.0,0.41174]
[1728377051983,5.0962,2429.2,2429.0,0.41174]
[1728377052289,5.50792,2429.2,2429.0,0.41174]
[1728377053094,2.30012,2429.2,2429.0,0.41174]
[1728377054689,0.82012,2429.2,2428.9,1.2472]
[1728377054889,0.82012,2429.2,2429.1,0.41173]
[1728377055189,2.30012,2429.2,2428.9,1.2472]
[1728377055390,2.30012,2429.2,2429.0,0.41174]
[1728377057499,0.4003,2429.1,2429.0,0.41174]
[1728377060904,0.4208,2429.4,2429.3,0.4117]
[1728377061094,1.48,2429.5,2429.4,0.41168]
[1728377063305,1.48,2429.5,2429.3,0.4247]
[1728377063306,1.89167,2429.5,2429.3,0.41169]
[1728377063607,1.48,2429.4,2429.3,0.41169]
[1728377065809,1.48,2429.4,2429.1,0.4064]
[1728377066203,1.48,2429.4,2429.3,0.4117]
[1728377070612,1.48,2429.4,2429.1,0.4064]
[1728377070807,0.396,2429.3,2429.2,0.41171]
[1728377071013,0.8077,2429.3,2429.2,0.41171]
[1728377071417,0.396,2429.3,2429.2,0.41171]
[1728377071613,0.396,2429.3,2428.6,4.33335]
[1728377071819,0.7949,2429.2,2429.1,0.41172]
[1728377072313,2.2749,2429.2,2429.1,0.41172]
[1728377073811,2.68662,2429.2,2429.0,0.41174]
[1728377077918,0.41174,2429.1,2428.9,0.41177]
[1728377078118,1.48,2429.0,2428.9,0.41177]
[1728377079330,0.41178,2428.9,2428.7,0.41179]
[1728377079626,1.8991,2428.8,2428.7,0.41179]
[1728377079818,2.31089,2428.8,2428.6,0.41181]
[1728377080018,2.31089,2428.8,2428.5,0.41183]
[1728377080019,1.89181,2428.7,2428.5,0.41183]
[1728377080219,1.48,2428.7,2428.4,0.4103]
[1728377080418,1.48,2428.5,2428.4,0.82213]
[1728377080820,1.8887,2428.5,2428.4,0.41183]
[1728377081221,1.8838,2428.6,2428.5,0.41183]
[1728377081429,1.8838,2428.6,2428.2,4.0412]
[1728377081430,3.4098,2428.8,2428.7,0.4118]
[1728377081924,0.8278,2428.8,2428.7,0.4118]
[1728377082125,2.3078,2428.8,2428.7,0.4118]
[1728377090533,0.8278,2428.8,2428.7,0.4118]
[1728377090727,1.7244879,2428.9,2428.8,0.41178]
[1728377094834,1.7244879,2428.9,2428.5,3.2078]
[1728377094835,1.7244879,2428.9,2428.6,0.4052]
[1728377095133,1.7244879,2428.9,2428.7,0.41179]
[1728377095737,2.1362579,2428.9,2428.7,0.41179]
[1728377098638,1.7244879,2428.9,2428.6,3.613]
[1728377098829,1.7244879,2428.9,2428.8,0.41178]
[1728377099335,1.7244879,2428.9,2428.6,3.613]
[1728377099535,2.1362579,2428.9,2428.7,0.41179]
[1728377100141,1.89177,2428.9,2428.7,0.41179]
[1728377101144,0.41178,2428.8,2428.6,4.02481]
[1728377101338,2.7028,2428.7,2428.5,0.41182]
[1728377101544,0.65155577,2429.0,2428.4,1.8882]
[1728377101841,0.41177,2428.9,2428.7,0.41179]
[1728377102046,2.71137,2428.9,2428.7,0.41179]
[1728377102236,1.89178,2428.8,2428.6,0.4118]
[1728377102644,0.4178,2428.7,2428.6,0.4118]
[1728377108047,0.8296,2428.7,2428.6,0.4118]
[1728377109144,0.41183,2428.6,2428.4,0.82004]
[1728377109475,2.31653,2428.6,2428.4,0.82004]
[1728377109639,0.417,2428.5,2428.4,0.82004]
[1728377110948,0.417,2428.5,2428.4,0.41184]
[1728377111146,0.82884,2428.5,2428.3,3.61966]
[1728377111453,1.9003,2428.4,2428.3,3.61966]
[1728377113351,0.4203,2428.4,2428.3,3.61966]
[1728377114555,0.41188,2428.2,2428.1,5.03254883]
[1728377114752,0.41194,2427.9,2427.8,0.4147]
[1728377114942,0.41194,2427.9,2427.7,3.2078]
[1728377114943,0.41195,2427.8,2427.7,3.2078]
[1728377115147,1.48,2427.9,2427.5,1.2243]
[1728377115148,0.41199,2427.6,2427.5,1.2243]
[1728377115349,1.89199,2427.6,2427.4,0.41201]
[1728377115555,1.48,2427.6,2427.4,0.41201]
[1728377115846,1.9021,2427.6,2427.4,0.412]
[1728377116052,1.9021,2427.6,2427.5,0.412]
[1728377116556,2.31409,2427.6,2427.3,3.61983]
[1728377116849,1.48,2427.4,2427.3,3.61983]
[1728377118853,1.48,2427.5,2427.4,0.412]
[1728377119152,0.4221,2427.6,2427.3,3.2078]
[1728377119369,2.3193,2427.7,2427.6,0.41199]
[1728377126871,1.485,2428.1,2427.8,0.41195]
[1728377127157,0.4276,2428.0,2427.9,0.41193]
[1728377129757,1.9076,2428.0,2427.9,0.41193]
[1728377137064,0.8257,2428.1,2427.7,1.48]
[1728377137266,0.383,2428.6,2428.5,0.41183]
[1728377137471,1.2304,2428.6,2428.5,0.41183]
[1728377137767,2.7104,2428.6,2428.5,0.41183]
[1728377142774,2.7104,2428.6,2428.5,0.41183]
[1728377146972,4.135,2429.1,2429.0,0.41175]
[1728377147177,2.6869,2429.1,2429.0,0.41175]
[1728377148171,2.6869,2429.1,2428.9,0.41175]
[1728377148777,1.2069,2429.1,2429.0,0.41175]
[1728377148974,0.8184,2429.1,2429.0,0.41175]
[1728377149171,0.2513502,2429.5,2429.4,0.41168]
[1728377149473,1.892,2429.7,2429.5,0.41166]
[1728377149776,1.48,2429.6,2429.5,0.41166]
[1728377150472,3.21,2429.6,2429.4,0.41167]
[1728377151572,3.21,2429.6,2429.2,3.2078]
[1728377151766,3.62165,2429.6,2429.3,0.41169]
[1728377152072,0.3998,2429.5,2429.3,0.41169]
[1728377152481,0.4095,2429.4,2429.3,0.41169]
[1728377160877,0.3998,2429.5,2429.4,0.41168]
[1728377164675,0.3998,2429.5,2429.2,3.2078]
[1728377164676,0.4178,2429.6,2429.5,0.41166]
[1728377166175,3.2078,2429.8,2429.7,0.41163]
[1728377167770,4.25185053,2430.0,2429.8,0.4116]
[1728377168379,4.25185053,2430.0,2429.9,0.4116]
[1728377168380,4.0069,2430.0,2429.9,0.4116]
[1728377168579,0.7969,2430.0,2429.9,0.4116]
[1728377168777,0.3888,2430.0,2429.9,0.4116]
[1728377171785,0.4211,2430.1,2430.0,0.41158]
[1728377172381,1.48,2430.1,2429.8,3.2078]
[1728377172585,0.8534,2430.2,2430.1,0.41156]
[1728377173786,2.3334,2430.2,2430.1,0.41156]
[1728377176384,0.8534,2430.2,2430.1,0.41156]
[1728377176692,1.8672,2430.4,2430.3,0.41153]
[1728377176887,2.7116,2430.4,2430.3,0.41153]
[1728377177093,2.96432509,2430.4,2430.3,0.41153]
[1728377177281,2.96432509,2430.4,2430.2,0.41153]
[1728377177484,1.89154,2430.3,2430.1,0.41156]
[1728377178093,1.48,2430.3,2430.2,0.41155]
[1728377178385,0.41155,2430.2,2430.0,0.41157]
[1728377178583,1.48,2430.1,2430.0,0.41157]
[1728377181093,1.48,2430.1,2430.0,0.41158]
[1728377183389,1.89157,2430.1,2429.9,0.41159]
[1728377183595,1.2186,2430.0,2429.9,0.41159]
[1728377184190,0.4116,2429.9,2429.7,0.41162]
[1728377184395,0.41162,2429.8,2429.5,0.423]
[1728377184596,1.48,2429.7,2429.6,0.41164]
[1728377185993,1.48,2429.7,2429.5,0.83465]
[1728377186297,0.8136,2429.6,2429.5,0.83465]
[1728377193500,0.4261,2429.6,2429.5,0.83465]
[1728377194404,1.89161,2429.8,2429.7,0.41163]
[1728377194602,2.31891,2429.8,2429.7,0.41163]
[1728377195000,1.9073,2429.8,2429.7,0.41163]
[1728377195199,2.31891,2429.8,2429.6,0.41164]
[1728377196704,1.9073,2429.8,2429.6,0.41165]
[1728377197100,2.31891,2429.8,2429.6,0.41165]
[1728377197500,2.31891,2429.8,2429.2,3.3038]
[1728377197501,5.596,2429.7,2429.2,3.3038]
[1728377197700,0.41167,2429.5,2429.3,0.41169]
[1728377197904,0.4033,2429.4,2429.3,0.41169]
[1728377198101,0.7971,2429.4,2429.2,3.2078]
[1728377198303,0.7971,2429.4,2429.3,0.4117]
[1728377199702,0.7971,2429.4,2429.3,0.8053]
[1728377204408,0.7971,2429.4,2429.3,0.4117]
[1728377207113,0.7971,2429.4,2429.3,0.7983]
[1728377207907,0.4241,2429.6,2429.3,0.3866]
[1728377208108,0.4241,2429.6,2429.5,0.41166]
[1728377208407,0.8295,2429.6,2429.5,0.41166]
[1728377211010,0.64173528,2429.7,2429.4,0.4014]
[1728377211210,0.3931,2429.7,2429.6,0.41165]
[1728377223124,2.304,2429.9,2429.8,0.41161]
[1728377223321,2.7286,2429.9,2429.8,0.41161]
[1728377223513,1.2486,2429.9,2429.8,0.41161]
[1728377224020,1.2486,2429.9,2429.7,0.41162]
[1728377224221,1.6602,2429.9,2429.7,0.41162]
[1728377226719,1.6602,2429.9,2429.8,0.41161]
[1728377226720,1.2486,2429.9,2429.8,0.41161]
[1728377226926,0.77046458,2430.2,2429.8,4.1152]
[1728377227224,1.60855,2430.2,2430.0,0.41157]
[1728377228017,1.60855,2430.2,2429.9,1.1881]
[1728377228214,1.60855,2430.2,2430.0,0.41157]
[1728377228723,1.60855,2430.2,2429.9,1.1881]
[1728377228922,1.197,2430.2,2430.1,0.41156]
[1728377231222,1.197,2430.2,2430.1,4.52676]
[1728377231824,1.197,2430.2,2430.1,0.41156]
[1728377232222,3.08856,2430.2,2430.0,1.02880658]
[1728377232524,3.08856,2430.2,2430.0,1.44038658]
[1728377235029,2.677,2430.2,2430.0,1.44038658]
[1728377236216,1.197,2430.2,2430.1,0.41156]
[1728377242330,1.197,2430.2,2430.0,2.05761316]
[1728377242526,1.197,2430.2,2430.0,2.46918316]
[1728377244034,1.197,2430.2,2430.1,0.41156]
[1728377245425,0.3913,2430.2,2430.1,1.89156]
[1728377246136,3.44999772,2430.4,2430.1,1.48]
[1728377246332,3.83999772,2430.4,2430.3,0.41153]
[1728377246733,3.5978,2430.4,2430.3,0.41153]
[1728377246941,3.2078,2430.4,2430.3,0.41153]
[1728377247436,3.5978,2430.4,2430.3,0.41153]
[1728377253540,4.00931,2430.4,2430.2,0.41154]
[1728377253740,3.5978,2430.4,2430.3,0.41153]
[1728377254241,0.41154,2430.3,2430.0,2.47271316]
[1728377254450,0.41154,2430.3,2430.1,0.41155]
[1728377255939,5.48932,2430.4,2430.2,0.41154]
[1728377256145,0.41153,2430.3,2430.1,0.41155]
[1728377256941,5.0778,2430.4,2430.0,2.47271316]
[1728377257141,5.48932,2430.4,2430.2,0.41155]
[1728377257340,5.0778,2430.4,2430.0,2.47271316]
[1728377257544,0.41153,2430.3,2430.1,0.41156]
[1728377257937,0.41153,2430.3,2430.2,0.41155]
[1728377258441,5.48932,2430.4,2430.2,0.41155]
[1728377261544,0.41153,2430.3,2430.1,0.41155]
[1728377261952,0.41153,2430.3,2430.0,2.47271316]
[1728377261953,5.0778,2430.4,2430.0,2.47271316]
[1728377262150,5.48932,2430.4,2430.0,2.47271316]
[1728377262339,5.48932,2430.4,2430.1,0.41156]
[1728377262754,5.0778,2430.4,2430.0,3.95271316]
[1728377262953,5.0778,2430.4,2430.2,0.41154]
[1728377263251,5.48932,2430.4,2430.1,0.41155]
[1728377265444,5.0778,2430.4,2430.0,3.95271316]
[1728377265653,5.0778,2430.4,2430.0,4.36428316]
[1728377265654,0.41154,2430.3,2430.0,4.36428316]
[1728377265954,0.41154,2430.3,2430.1,0.41156]
[1728377266551,0.41156,2430.2,2430.0,1.83968887]
[1728377266858,0.7893,2430.1,2430.0,1.83968887]
[1728377267148,5.0778,2430.4,2430.0,3.31968887]
[1728377267149,3.61932,2430.4,2430.0,3.31968887]
[1728377267355,1.1871,2430.3,2430.2,0.41155]
[1728377267558,1.1871,2430.3,2430.1,0.418]
[1728377267746,1.1871,2430.3,2430.2,0.41155]
[1728377268352,1.1871,2430.3,2430.1,0.418]
[1728377268553,1.1871,2430.3,2430.2,0.41155]
[1728377270649,1.1871,2430.3,2430.0,1.83968887]
[1728377270855,1.89156,2430.2,2430.0,1.83968887]
[1728377271059,0.41156,2430.1,2430.0,1.83968887]
[1728377271758,0.41155,2430.2,2430.0,1.83968887]
[1728377272054,3.07864,2430.3,2430.0,2.25126887]
[1728377272365,1.1871,2430.3,2430.2,0.41155]
[1728377272662,3.2078,2430.4,2430.3,0.41153]
[1728377272957,3.595,2430.4,2430.3,0.41153]
[1728377276759,3.2078,2430.4,2430.3,0.41153]
[1728377277456,3.2078,2430.4,2430.3,1.44020958]
[1728377277852,1.2166,2430.6,2430.3,1.02867958]
[1728377278056,1.2166,2430.6,2430.4,0.4115]
[1728377278248,1.2166,2430.6,2430.4,0.41151]
[1728377278452,1.2166,2430.6,2430.5,0.4103]
[1728377278859,1.2166,2430.6,2430.2,1.40329187]
[1728377278860,1.98724679,2430.6,2430.2,1.40329187]
[1728377279056,1.2166,2430.6,2430.2,1.40329187]
[1728377279260,1.62808,2430.6,2430.4,0.4115]
[1728377279458,2.39872679,2430.6,2430.4,0.4115]
[1728377279866,2.65194548,2430.6,2430.4,0.4115]
[1728377280557,2.24046548,2430.6,2430.2,4.61109187]
[1728377280753,0.4115,2430.5,2430.3,0.41152]
[1728377281157,0.4115,2430.5,2430.2,4.61109187]
[1728377281158,2.65195548,2430.6,2430.4,0.41151]
[1728377282665,0.4115,2430.5,2430.3,0.41152]
[1728377282855,2.65195548,2430.6,2430.2,5.02009187]
[1728377283056,2.65195548,2430.6,2430.4,0.41151]
[1728377284254,2.65195548,2430.6,2430.2,5.02009187]
[1728377284255,0.4115,2430.5,2430.3,0.41152]
[1728377284565,1.8915,2430.5,2430.3,0.41152]
[1728377284764,2.66214679,2430.5,2430.3,0.41152]
[1728377285068,0.41153,2430.3,2430.1,0.81775]
[1728377285259,0.8162,2430.2,2430.1,0.81775]
[1728377286065,1.22776,2430.2,2430.0,1.83968887]
[1728377286263,0.4088,2430.1,2430.0,1.83968887]
[1728377286572,6.41556,2430.1,2430.0,1.83968887]
[1728377286758,13.18620679,2430.1,2430.0,0.55768887]
[1728377286960,0.41163,2429.7,2429.6,0.096]
[1728377287158,0.41163,2429.7,2429.4,1.20478]
[1728377287369,0.4124,2429.6,2429.4,0.7931]
[1728377287562,0.4124,2429.6,2429.5,0.41166]
[1728377289577,0.4124,2429.6,2429.5,1.44067831]
[1728377289770,0.4124,2429.6,2429.5,1.02901831]
[1728377290071,2.30405,2429.6,2429.5,0.88162288]
[1728377291969,6.42005,2429.6,2429.5,0.88162288]
[1728377293075,0.4124,2429.6,2429.5,1.29328288]
[1728377293968,0.4124,2429.6,2429.5,2.77328288]
[1728377294169,0.4036,2429.9,2429.5,5.56942288]
[1728377294380,0.4036,2429.9,2429.8,0.41161]
[1728377295277,5.9988,2429.9,2429.6,0.427]
[1728377295573,0.41165,2429.6,2429.5,0.88162288]
[1728377296171,1.24735,2429.6,2429.5,0.88162288]
[1728377296578,2.72735,2429.6,2429.5,0.88162288]
[1728377296776,6.84335,2429.6,2429.5,0.88162288]
[1728377299977,2.72735,2429.6,2429.5,0.88162288]
[1728377300777,2.3157,2429.6,2429.5,0.88162288]
[1728377301274,0.8357,2429.6,2429.5,0.88162288]
[1728377301574,0.4177,2429.6,2429.5,1.29328288]
[1728377302582,0.8152,2429.9,2429.5,0.88162288]
[1728377302876,1.2175,2429.9,2429.7,0.41162]
[1728377303278,1.47027506,2429.9,2429.7,0.41162]
[1728377304076,1.47027506,2429.9,2429.6,0.80514]
[1728377305071,1.05867506,2429.9,2429.6,0.3935]
[1728377305277,0.8059,2429.9,2429.8,0.41161]
[1728377306386,0.8059,2429.9,2429.7,0.80982]
[1728377307185,1.2175,2429.9,2429.7,0.80982]
[1728377307579,0.8059,2429.9,2429.8,0.41161]
[1728377307776,0.24449142,2430.0,2429.7,0.3982]
[1728377307980,0.4116,2429.9,2429.7,0.3982]
[1728377308589,0.4116,2429.9,2429.7,0.80983]
[1728377310389,0.3943,2430.0,2429.9,0.4116]
[1728377310582,0.80815,2430.2,2430.0,0.41158]
[1728377310881,0.3966,2430.2,2430.1,0.81476]
[1728377311079,1.8766,2430.2,2430.1,0.4032]
[1728377311277,0.41157,2430.1,2429.9,0.4022]
[1728377311488,0.41157,2430.1,2429.8,0.8148]
[1728377311787,0.4229,2430.0,2429.9,0.4116]
[1728377315087,0.4229,2430.0,2429.8,0.4032]
[1728377315287,0.4229,2430.0,2429.9,0.4116]
[1728377319997,2.31448,2430.0,2429.8,0.81481]
[1728377320189,2.31448,2430.0,2429.9,0.4116]
[1728377320190,1.9029,2430.0,2429.9,0.4116]
[1728377320392,0.4229,2430.0,2429.9,0.4116]
[1728377323895,0.8448,2430.0,2429.9,0.4116]
[1728377325990,0.8448,2430.0,2429.8,0.4032]
[1728377326195,0.8448,2430.0,2429.8,0.81481]
[1728377326196,1.25638,2430.0,2429.8,0.81481]
[1728377327597,0.8448,2430.0,2429.8,0.81481]
[1728377328593,2.73638,2430.0,2429.8,0.4032]
[1728377328905,2.73638,2430.0,2429.9,1.02884892]
[1728377330691,2.3248,2430.0,2429.9,1.02884892]
[1728377331007,0.8448,2430.0,2429.9,1.02884892]
[1728377331795,1.25638,2430.0,2429.9,1.02884892]
[1728377333494,0.8448,2430.0,2429.9,1.02884892]
[1728377334890,0.8448,2430.0,2429.9,1.44044892]
[1728377337099,1.25638,2430.0,2429.9,1.02884892]
[1728377337904,2.73638,2430.0,2429.9,1.02884892]
[1728377338395,43.53638,2430.0,2429.9,1.02884892]
[1728377338601,2.73638,2430.0,2429.9,1.02884892]
[1728377339102,0.8448,2430.0,2429.9,1.44044892]
[1728377340300,0.8448,2430.0,2429.9,1.02884892]
[1728377340702,2.73638,2430.0,2429.9,1.02884892]
[1728377341410,6.85158,2430.0,2429.9,0.79698442]
[1728377341708,0.41163,2429.7,2429.6,0.096]
[1728377342019,0.41165,2429.6,2429.5,1.91064119]
[1728377342309,2.72775,2429.6,2429.5,1.91064119]
[1728377342513,2.3161,2429.6,2429.5,1.91064119]